Workbook

Sheet Helium Gas
A1: Simulation | B1: D:\Users\golo.zick\Documents\04_Divers\Design to Cost - G&C\HX predesign\Simu Guillaume\ST!TCC_MMM_10kW\ST!TCC_MMM_10kW.hsc | I1: Side | J1: 1 | K1: 2 | L1: 3 | M1: 4 | N1: 5 | O1: 6 | P1: 7 | Q1: 8 | R1: 9 | S1: 10
I2: Name | J2: =MakeName(J8,J9) -> T4Lb>>8MPa | K2: =MakeName(K8,K9) -> 8HPc>>9HPa | L2: 9LPa>>8LPa | M2: #Error# | N2: #Error# | O2: #Error# | P2: #Error# | Q2: #Error# | R2: #Error# | S2: #Error#
A3: Calculate data for side | B3: 8HPc>>9HPa | I3: Flow [kg/s] | J3: =VLOOKUP(_INOUTFlow,_DATA,4,FALSE) -> 0.12 | K3: =VLOOKUP(_INOUTFlow,_DATA,4,FALSE) -> 0.4645 | L3: 0.4554790653
I4: T IN [K] | J4: =VLOOKUP(_INStr,_DATA,2,FALSE) -> 18.67669293 | K4: 27.0435774 | L4: 18.67669293
I5: T OUT [K] | J5: =VLOOKUP(_OUTStr,_DATA,2,FALSE) -> 26.060519 | K5: 18.8634489 | L5: 26.06051716
B6: Min | C6: Max | D6: Round to | I6: p IN [bar] | J6: =VLOOKUP(_INStr,_DATA,3,FALSE) -> 5.256480657 | K6: 19.415 | L6: 1.267518171
A7: Pressure | B7: =FLOOR(HLOOKUP(_Side,_LNGData,6,FALSE)-_pR/10,_pR) -> 19.2 | C7: =CEILING(HLOOKUP(_Side,_LNGData,5,FALSE)+_pR/10,_pR) -> 19.6 | D7: 0.2 | I7: p OUT [bar] | J7: =VLOOKUP(_OUTStr,_DATA,3,FALSE) -> 5.241248535 | K7: 19.395 | L7: 1.252286071
A8: Temperature | B8: =FLOOR(MIN(HLOOKUP(_Side,_LNGData,3,FALSE),HLOOKUP(_Side,_LNGData,4,FALSE))-_TR/10,_TR) -> 18.5 | C8: =CEILING(MAX(HLOOKUP(_Side,_LNGData,3,FALSE),HLOOKUP(_Side,_LNGData,4,FALSE))+_TR/10,_TR) -> 27.5 | D8: 0.5 | I8: Stream IN | J8: T4Lb | K8: 8HPc | L8: 9LPa
A9: Flow | B9: =HLOOKUP(_Side,_LNGData,2,FALSE) -> 0.4645 | I9: Stream OUT | J9: 8MPa | K9: 9HPa | L9: 8LPa
A10: =IF(ISNUMBER([1]!hecalc(2,0,1,_p1*100000,43,300,1)),IF(_T1>[1]!hecalc(2,0,1,_p1*100000,43,300,1),"Data OK","/!\ Minimum point in two-phase region /!\"),"Data OK") -> Data OK | I10: Flow from | J10: 8MPa | K10: 8HPc | L10: 8LPa
A12: EDR Configuration
A13: BAHX orientation | B13: Horizontal, horizontal parting sheets
A14: Area safety factor | B14: 0.15 | C14: (default 15% ; 30% if T<20K)
A15: Axial conduction option | B15: Along fins and parting sheets
A16: Default fin | B16: 2912 | C16: (default 2912)
A18: ="@ pmin="& _p1 & " bar" -> @ pmin=19.2 bar | C18: 1 | D18: 2 | E18: 3 | F18: 4 | G18: 5 | H18: 6 | I18: 7 | J18: 8 | K18: 9 | L18: 10 | M18: 11 | N18: 12 | O18: 13 | P18: 14 | Q18: 15 | R18: 16 | S18: 17 | T18: 18 | U18: 19 | V18: 20 | W18: 21 | X18: 22 | Y18: 23 | Z18: 24
A19: Temperature | B19: K | C19: =_T1 -> 18.5 | D19: =(_T2-_T1)/23+C19 -> 18.89130435 | E19: =(_T2-_T1)/23+D19 -> 19.2826087 | F19: 19.67391304 | G19: 20.06521739 | H19: 20.45652174 | I19: 20.84782609 | J19: 21.23913043 | K19: 21.63043478 | L19: 22.02173913 | M19: 22.41304348 | N19: 22.80434783 | O19: 23.19565217 | P19: 23.58695652 | Q19: 23.97826087 | R19: 24.36956522 | S19: 24.76086957 | T19: 25.15217391 | U19: 25.54347826 | V19: 25.93478261 | W19: 26.32608696 | X19: 26.7173913 | Y19: 27.10869565 | Z19: 27.5
A20: Liquid density | B20: kg/m3
A21: Liquid specific heat | B21: J/(kg*K)
A22: Liquid viscosity | B22: Pa*s
A23: Liquid thermal cond. | B23: W/(m*K)
A24: Liquid surface tension | B24: N/m
A25: Liquid molecular weight
A26: Specific enthalpy | B26: J/kg | C26: =[1]!hecalc(9,0,1,_p1*100000,2,_T*1,1) -> 101531.4452 | D26: =[1]!hecalc(9,0,1,_p1*100000,2,_T*1,1) -> 103956.3853 | E26: =[1]!hecalc(9,0,1,_p1*100000,2,_T*1,1) -> 106366.7957 | F26: =[1]!hecalc(9,0,1,_p1*100000,2,_T*1,1) -> 108763.3693 | G26: =[1]!hecalc(9,0,1,_p1*100000,2,_T*1,1) -> 111146.7703 | H26: =[1]!hecalc(9,0,1,_p1*100000,2,_T*1,1) -> 113517.6326 | I26: =[1]!hecalc(9,0,1,_p1*100000,2,_T*1,1) -> 115876.5588 | J26: =[1]!hecalc(9,0,1,_p1*100000,2,_T*1,1) -> 118224.1209 | K26: =[1]!hecalc(9,0,1,_p1*100000,2,_T*1,1) -> 120560.8605 | L26: =[1]!hecalc(9,0,1,_p1*100000,2,_T*1,1) -> 122887.29 | M26: =[1]!hecalc(9,0,1,_p1*100000,2,_T*1,1) -> 125203.8932 | N26: =[1]!hecalc(9,0,1,_p1*100000,2,_T*1,1) -> 127511.1274 | O26: =[1]!hecalc(9,0,1,_p1*100000,2,_T*1,1) -> 129809.4238 | P26: =[1]!hecalc(9,0,1,_p1*100000,2,_T*1,1) -> 132099.1896 | Q26: =[1]!hecalc(9,0,1,_p1*100000,2,_T*1,1) -> 134380.809 | R26: =[1]!hecalc(9,0,1,_p1*100000,2,_T*1,1) -> 136654.6447 | S26: =[1]!hecalc(9,0,1,_p1*100000,2,_T*1,1) -> 138921.0389 | T26: =[1]!hecalc(9,0,1,_p1*100000,2,_T*1,1) -> 141180.315 | U26: =[1]!hecalc(9,0,1,_p1*100000,2,_T*1,1) -> 143432.7784 | V26: =[1]!hecalc(9,0,1,_p1*100000,2,_T*1,1) -> 145678.7178 | W26: =[1]!hecalc(9,0,1,_p1*100000,2,_T*1,1) -> 147918.406 | X26: =[1]!hecalc(9,0,1,_p1*100000,2,_T*1,1) -> 150152.1014 | Y26: =[1]!hecalc(9,0,1,_p1*100000,2,_T*1,1) -> 152380.0482 | Z26: =[1]!hecalc(9,0,1,_p1*100000,2,_T*1,1) -> 154602.4782
A27: Vapor mass fraction | C27: 1 | D27: 1 | E27: 1 | F27: 1 | G27: 1 | H27: 1 | I27: 1 | J27: 1 | K27: 1 | L27: 1 | M27: 1 | N27: 1 | O27: 1 | P27: 1 | Q27: 1 | R27: 1 | S27: 1 | T27: 1 | U27: 1 | V27: 1 | W27: 1 | X27: 1 | Y27: 1 | Z27: 1
A28: Vapor density | B28: kg/m3 | C28: =[1]!hecalc(3,0,1,_p1*100000,2,_T*1,1) -> 49.5183779 | D28: =[1]!hecalc(3,0,1,_p1*100000,2,_T*1,1) -> 48.32673775 | E28: =[1]!hecalc(3,0,1,_p1*100000,2,_T*1,1) -> 47.19605653 | F28: =[1]!hecalc(3,0,1,_p1*100000,2,_T*1,1) -> 46.1217227 | G28: =[1]!hecalc(3,0,1,_p1*100000,2,_T*1,1) -> 45.09956035 | H28: =[1]!hecalc(3,0,1,_p1*100000,2,_T*1,1) -> 44.12578325 | I28: =[1]!hecalc(3,0,1,_p1*100000,2,_T*1,1) -> 43.19695358 | J28: =[1]!hecalc(3,0,1,_p1*100000,2,_T*1,1) -> 42.30994524 | K28: =[1]!hecalc(3,0,1,_p1*100000,2,_T*1,1) -> 41.46191117 | L28: =[1]!hecalc(3,0,1,_p1*100000,2,_T*1,1) -> 40.65025431 | M28: =[1]!hecalc(3,0,1,_p1*100000,2,_T*1,1) -> 39.87260183 | N28: =[1]!hecalc(3,0,1,_p1*100000,2,_T*1,1) -> 39.12678223 | O28: =[1]!hecalc(3,0,1,_p1*100000,2,_T*1,1) -> 38.41080513 | P28: =[1]!hecalc(3,0,1,_p1*100000,2,_T*1,1) -> 37.72284314 | Q28: =[1]!hecalc(3,0,1,_p1*100000,2,_T*1,1) -> 37.06121595 | R28: =[1]!hecalc(3,0,1,_p1*100000,2,_T*1,1) -> 36.424376 | S28: =[1]!hecalc(3,0,1,_p1*100000,2,_T*1,1) -> 35.81089589 | T28: =[1]!hecalc(3,0,1,_p1*100000,2,_T*1,1) -> 35.21945703 | U28: =[1]!hecalc(3,0,1,_p1*100000,2,_T*1,1) -> 34.64883956 | V28: =[1]!hecalc(3,0,1,_p1*100000,2,_T*1,1) -> 34.09791338 | W28: =[1]!hecalc(3,0,1,_p1*100000,2,_T*1,1) -> 33.56563004 | X28: =[1]!hecalc(3,0,1,_p1*100000,2,_T*1,1) -> 33.05101554 | Y28: =[1]!hecalc(3,0,1,_p1*100000,2,_T*1,1) -> 32.55316384 | Z28: =[1]!hecalc(3,0,1,_p1*100000,2,_T*1,1) -> 32.07123104
A29: Vapor specific heat | B29: J/(kg*K) | C29: =[1]!hecalc(14,0,1,_p1*100000,2,_T*1,1) -> 6216.242527 | D29: =[1]!hecalc(14,0,1,_p1*100000,2,_T*1,1) -> 6178.202438 | E29: =[1]!hecalc(14,0,1,_p1*100000,2,_T*1,1) -> 6141.968198 | F29: =[1]!hecalc(14,0,1,_p1*100000,2,_T*1,1) -> 6107.469004 | G29: =[1]!hecalc(14,0,1,_p1*100000,2,_T*1,1) -> 6074.628677 | H29: =[1]!hecalc(14,0,1,_p1*100000,2,_T*1,1) -> 6043.368477 | I29: =[1]!hecalc(14,0,1,_p1*100000,2,_T*1,1) -> 6013.609148 | J29: =[1]!hecalc(14,0,1,_p1*100000,2,_T*1,1) -> 5985.272378 | K29: =[1]!hecalc(14,0,1,_p1*100000,2,_T*1,1) -> 5958.281819 | L29: =[1]!hecalc(14,0,1,_p1*100000,2,_T*1,1) -> 5932.563778 | M29: =[1]!hecalc(14,0,1,_p1*100000,2,_T*1,1) -> 5908.04765 | N29: =[1]!hecalc(14,0,1,_p1*100000,2,_T*1,1) -> 5884.666181 | O29: =[1]!hecalc(14,0,1,_p1*100000,2,_T*1,1) -> 5862.355586 | P29: =[1]!hecalc(14,0,1,_p1*100000,2,_T*1,1) -> 5841.055574 | Q29: =[1]!hecalc(14,0,1,_p1*100000,2,_T*1,1) -> 5820.709307 | R29: =[1]!hecalc(14,0,1,_p1*100000,2,_T*1,1) -> 5801.263299 | S29: =[1]!hecalc(14,0,1,_p1*100000,2,_T*1,1) -> 5782.667304 | T29: =[1]!hecalc(14,0,1,_p1*100000,2,_T*1,1) -> 5764.874158 | U29: =[1]!hecalc(14,0,1,_p1*100000,2,_T*1,1) -> 5747.839632 | V29: =[1]!hecalc(14,0,1,_p1*100000,2,_T*1,1) -> 5731.522266 | W29: =[1]!hecalc(14,0,1,_p1*100000,2,_T*1,1) -> 5715.883206 | X29: =[1]!hecalc(14,0,1,_p1*100000,2,_T*1,1) -> 5700.886047 | Y29: =[1]!hecalc(14,0,1,_p1*100000,2,_T*1,1) -> 5686.496674 | Z29: =[1]!hecalc(14,0,1,_p1*100000,2,_T*1,1) -> 5672.683115
A30: Vapor viscosity | B30: Pa*s | C30: =[1]!hecalc(25,0,1,_p1*100000,2,_T*1,1) -> 4.156838249e-06 | D30: =[1]!hecalc(25,0,1,_p1*100000,2,_T*1,1) -> 4.187808576e-06 | E30: =[1]!hecalc(25,0,1,_p1*100000,2,_T*1,1) -> 4.219165703e-06 | F30: =[1]!hecalc(25,0,1,_p1*100000,2,_T*1,1) -> 4.250857387e-06 | G30: =[1]!hecalc(25,0,1,_p1*100000,2,_T*1,1) -> 4.282837781e-06 | H30: =[1]!hecalc(25,0,1,_p1*100000,2,_T*1,1) -> 4.315066535e-06 | I30: =[1]!hecalc(25,0,1,_p1*100000,2,_T*1,1) -> 4.347508048e-06 | J30: =[1]!hecalc(25,0,1,_p1*100000,2,_T*1,1) -> 4.380130833e-06 | K30: =[1]!hecalc(25,0,1,_p1*100000,2,_T*1,1) -> 4.41290698e-06 | L30: =[1]!hecalc(25,0,1,_p1*100000,2,_T*1,1) -> 4.445811697e-06 | M30: =[1]!hecalc(25,0,1,_p1*100000,2,_T*1,1) -> 4.478822922e-06 | N30: =[1]!hecalc(25,0,1,_p1*100000,2,_T*1,1) -> 4.511920985e-06 | O30: =[1]!hecalc(25,0,1,_p1*100000,2,_T*1,1) -> 4.545088324e-06 | P30: =[1]!hecalc(25,0,1,_p1*100000,2,_T*1,1) -> 4.57830923e-06 | Q30: =[1]!hecalc(25,0,1,_p1*100000,2,_T*1,1) -> 4.611569641e-06 | R30: =[1]!hecalc(25,0,1,_p1*100000,2,_T*1,1) -> 4.644856947e-06 | S30: =[1]!hecalc(25,0,1,_p1*100000,2,_T*1,1) -> 4.678159833e-06 | T30: =[1]!hecalc(25,0,1,_p1*100000,2,_T*1,1) -> 4.711468134e-06 | U30: =[1]!hecalc(25,0,1,_p1*100000,2,_T*1,1) -> 4.744772713e-06 | V30: =[1]!hecalc(25,0,1,_p1*100000,2,_T*1,1) -> 4.77806535e-06 | W30: =[1]!hecalc(25,0,1,_p1*100000,2,_T*1,1) -> 4.811338648e-06 | X30: =[1]!hecalc(25,0,1,_p1*100000,2,_T*1,1) -> 4.844585947e-06 | Y30: =[1]!hecalc(25,0,1,_p1*100000,2,_T*1,1) -> 4.877801249e-06 | Z30: =[1]!hecalc(25,0,1,_p1*100000,2,_T*1,1) -> 4.910979154e-06
A31: Vapor thermal cond. | B31: W/(m*K) | C31: =[1]!hecalc(26,0,1,_p1*100000,2,_T*1,1) -> 0.03160492389 | D31: =[1]!hecalc(26,0,1,_p1*100000,2,_T*1,1) -> 0.03181842491 | E31: =[1]!hecalc(26,0,1,_p1*100000,2,_T*1,1) -> 0.03203412405 | F31: =[1]!hecalc(26,0,1,_p1*100000,2,_T*1,1) -> 0.03225174923 | G31: =[1]!hecalc(26,0,1,_p1*100000,2,_T*1,1) -> 0.03247106448 | H31: =[1]!hecalc(26,0,1,_p1*100000,2,_T*1,1) -> 0.03269186443 | I31: =[1]!hecalc(26,0,1,_p1*100000,2,_T*1,1) -> 0.03291396963 | J31: =[1]!hecalc(26,0,1,_p1*100000,2,_T*1,1) -> 0.03313722271 | K31: =[1]!hecalc(26,0,1,_p1*100000,2,_T*1,1) -> 0.03336148523 | L31: =[1]!hecalc(26,0,1,_p1*100000,2,_T*1,1) -> 0.03358663494 | M31: =[1]!hecalc(26,0,1,_p1*100000,2,_T*1,1) -> 0.0338125636 | N31: =[1]!hecalc(26,0,1,_p1*100000,2,_T*1,1) -> 0.03403917502 | O31: =[1]!hecalc(26,0,1,_p1*100000,2,_T*1,1) -> 0.0342663835 | P31: =[1]!hecalc(26,0,1,_p1*100000,2,_T*1,1) -> 0.03449411246 | Q31: =[1]!hecalc(26,0,1,_p1*100000,2,_T*1,1) -> 0.03472229329 | R31: =[1]!hecalc(26,0,1,_p1*100000,2,_T*1,1) -> 0.03495086434 | S31: =[1]!hecalc(26,0,1,_p1*100000,2,_T*1,1) -> 0.03517977011 | T31: =[1]!hecalc(26,0,1,_p1*100000,2,_T*1,1) -> 0.03540896047 | U31: =[1]!hecalc(26,0,1,_p1*100000,2,_T*1,1) -> 0.03563839007 | V31: =[1]!hecalc(26,0,1,_p1*100000,2,_T*1,1) -> 0.03586801781 | W31: =[1]!hecalc(26,0,1,_p1*100000,2,_T*1,1) -> 0.03609780632 | X31: =[1]!hecalc(26,0,1,_p1*100000,2,_T*1,1) -> 0.03632772159 | Y31: =[1]!hecalc(26,0,1,_p1*100000,2,_T*1,1) -> 0.03655773258 | Z31: =[1]!hecalc(26,0,1,_p1*100000,2,_T*1,1) -> 0.03678781095
A32: Vapor molecular weight | C32: 4.0026 | D32: 4.0026 | E32: 4.0026 | F32: 4.0026 | G32: 4.0026 | H32: 4.0026 | I32: 4.0026 | J32: 4.0026 | K32: 4.0026 | L32: 4.0026 | M32: 4.0026 | N32: 4.0026 | O32: 4.0026 | P32: 4.0026 | Q32: 4.0026 | R32: 4.0026 | S32: 4.0026 | T32: 4.0026 | U32: 4.0026 | V32: 4.0026 | W32: 4.0026 | X32: 4.0026 | Y32: 4.0026 | Z32: 4.0026
A34: ="@ pmax= "& _p2 & " bar" -> @ pmax= 19.6 bar | C34: 1 | D34: 2 | E34: 3 | F34: 4 | G34: 5 | H34: 6 | I34: 7 | J34: 8 | K34: 9 | L34: 10 | M34: 11 | N34: 12 | O34: 13 | P34: 14 | Q34: 15 | R34: 16 | S34: 17 | T34: 18 | U34: 19 | V34: 20 | W34: 21 | X34: 22 | Y34: 23 | Z34: 24
A35: Temperature | B35: K | C35: =_T -> 18.5 | D35: 18.89130435 | E35: 19.2826087 | F35: 19.67391304 | G35: 20.06521739 | H35: 20.45652174 | I35: 20.84782609 | J35: 21.23913043 | K35: 21.63043478 | L35: 22.02173913 | M35: 22.41304348 | N35: 22.80434783 | O35: 23.19565217 | P35: 23.58695652 | Q35: 23.97826087 | R35: 24.36956522 | S35: 24.76086957 | T35: 25.15217391 | U35: 25.54347826 | V35: 25.93478261 | W35: 26.32608696 | X35: 26.7173913 | Y35: 27.10869565 | Z35: 27.5
A36: Liquid density | B36: kg/m3
A37: Liquid specific heat | B37: J/(kg*K)
A38: Liquid viscosity | B38: Pa*s
A39: Liquid thermal cond. | B39: W/(m*K)
A40: Liquid surface tension | B40: N/m
A41: Liquid molecular weight
A42: Specific enthalpy | B42: J/kg | C42: =[1]!hecalc(9,0,1,_p2*100000,2,_T*1,1) -> 101397.12 | D42: =[1]!hecalc(9,0,1,_p2*100000,2,_T*1,1) -> 103826.2382 | E42: =[1]!hecalc(9,0,1,_p2*100000,2,_T*1,1) -> 106240.859 | F42: =[1]!hecalc(9,0,1,_p2*100000,2,_T*1,1) -> 108641.6526 | G42: =[1]!hecalc(9,0,1,_p2*100000,2,_T*1,1) -> 111029.2649 | H42: =[1]!hecalc(9,0,1,_p2*100000,2,_T*1,1) -> 113404.3146 | I42: =[1]!hecalc(9,0,1,_p2*100000,2,_T*1,1) -> 115767.3926 | J42: =[1]!hecalc(9,0,1,_p2*100000,2,_T*1,1) -> 118119.0612 | K42: =[1]!hecalc(9,0,1,_p2*100000,2,_T*1,1) -> 120459.8545 | L42: =[1]!hecalc(9,0,1,_p2*100000,2,_T*1,1) -> 122790.279 | M42: =[1]!hecalc(9,0,1,_p2*100000,2,_T*1,1) -> 125110.814 | N42: =[1]!hecalc(9,0,1,_p2*100000,2,_T*1,1) -> 127421.9134 | O42: =[1]!hecalc(9,0,1,_p2*100000,2,_T*1,1) -> 129724.006 | P42: =[1]!hecalc(9,0,1,_p2*100000,2,_T*1,1) -> 132017.4974 | Q42: =[1]!hecalc(9,0,1,_p2*100000,2,_T*1,1) -> 134302.7707 | R42: =[1]!hecalc(9,0,1,_p2*100000,2,_T*1,1) -> 136580.1881 | S42: =[1]!hecalc(9,0,1,_p2*100000,2,_T*1,1) -> 138850.0919 | T42: =[1]!hecalc(9,0,1,_p2*100000,2,_T*1,1) -> 141112.8055 | U42: =[1]!hecalc(9,0,1,_p2*100000,2,_T*1,1) -> 143368.635 | V42: =[1]!hecalc(9,0,1,_p2*100000,2,_T*1,1) -> 145617.8698 | W42: =[1]!hecalc(9,0,1,_p2*100000,2,_T*1,1) -> 147860.7837 | X42: =[1]!hecalc(9,0,1,_p2*100000,2,_T*1,1) -> 150097.6361 | Y42: =[1]!hecalc(9,0,1,_p2*100000,2,_T*1,1) -> 152328.6726 | Z42: =[1]!hecalc(9,0,1,_p2*100000,2,_T*1,1) -> 154554.1259
A43: Vapor mass fraction | C43: 1 | D43: 1 | E43: 1 | F43: 1 | G43: 1 | H43: 1 | I43: 1 | J43: 1 | K43: 1 | L43: 1 | M43: 1 | N43: 1 | O43: 1 | P43: 1 | Q43: 1 | R43: 1 | S43: 1 | T43: 1 | U43: 1 | V43: 1 | W43: 1 | X43: 1 | Y43: 1 | Z43: 1
A44: Vapor density | B44: kg/m3 | C44: =[1]!hecalc(3,0,1,_p2*100000,2,_T*1,1) -> 50.48544104 | D44: =[1]!hecalc(3,0,1,_p2*100000,2,_T*1,1) -> 49.27148725 | E44: =[1]!hecalc(3,0,1,_p2*100000,2,_T*1,1) -> 48.1194563 | F44: =[1]!hecalc(3,0,1,_p2*100000,2,_T*1,1) -> 47.02469529 | G44: =[1]!hecalc(3,0,1,_p2*100000,2,_T*1,1) -> 45.9829854 | H44: =[1]!hecalc(3,0,1,_p2*100000,2,_T*1,1) -> 44.99049706 | I44: =[1]!hecalc(3,0,1,_p2*100000,2,_T*1,1) -> 44.04374962 | J44: =[1]!hecalc(3,0,1,_p2*100000,2,_T*1,1) -> 43.13957522 | K44: =[1]!hecalc(3,0,1,_p2*100000,2,_T*1,1) -> 42.27508645 | L44: =[1]!hecalc(3,0,1,_p2*100000,2,_T*1,1) -> 41.44764762 | M44: =[1]!hecalc(3,0,1,_p2*100000,2,_T*1,1) -> 40.65484913 | N44: =[1]!hecalc(3,0,1,_p2*100000,2,_T*1,1) -> 39.89448462 | O44: =[1]!hecalc(3,0,1,_p2*100000,2,_T*1,1) -> 39.16453075 | P44: =[1]!hecalc(3,0,1,_p2*100000,2,_T*1,1) -> 38.46312912 | Q44: =[1]!hecalc(3,0,1,_p2*100000,2,_T*1,1) -> 37.78857019 | R44: =[1]!hecalc(3,0,1,_p2*100000,2,_T*1,1) -> 37.13927902 | S44: =[1]!hecalc(3,0,1,_p2*100000,2,_T*1,1) -> 36.51380246 | T44: =[1]!hecalc(3,0,1,_p2*100000,2,_T*1,1) -> 35.91079782 | U44: =[1]!hecalc(3,0,1,_p2*100000,2,_T*1,1) -> 35.32902263 | V44: =[1]!hecalc(3,0,1,_p2*100000,2,_T*1,1) -> 34.76732562 | W44: =[1]!hecalc(3,0,1,_p2*100000,2,_T*1,1) -> 34.22463848 | X44: =[1]!hecalc(3,0,1,_p2*100000,2,_T*1,1) -> 33.69996862 | Y44: =[1]!hecalc(3,0,1,_p2*100000,2,_T*1,1) -> 33.19239258 | Z44: =[1]!hecalc(3,0,1,_p2*100000,2,_T*1,1) -> 32.70105012
A45: Vapor specific heat | B45: J/(kg*K) | C45: =[1]!hecalc(14,0,1,_p2*100000,2,_T*1,1) -> 6226.85634 | D45: =[1]!hecalc(14,0,1,_p2*100000,2,_T*1,1) -> 6188.931778 | E45: =[1]!hecalc(14,0,1,_p2*100000,2,_T*1,1) -> 6152.749094 | F45: =[1]!hecalc(14,0,1,_p2*100000,2,_T*1,1) -> 6118.24929 | G45: =[1]!hecalc(14,0,1,_p2*100000,2,_T*1,1) -> 6085.366026 | H45: =[1]!hecalc(14,0,1,_p2*100000,2,_T*1,1) -> 6054.028749 | I45: =[1]!hecalc(14,0,1,_p2*100000,2,_T*1,1) -> 6024.165004 | J45: =[1]!hecalc(14,0,1,_p2*100000,2,_T*1,1) -> 5995.70212 | K45: =[1]!hecalc(14,0,1,_p2*100000,2,_T*1,1) -> 5968.568424 | L45: =[1]!hecalc(14,0,1,_p2*100000,2,_T*1,1) -> 5942.694089 | M45: =[1]!hecalc(14,0,1,_p2*100000,2,_T*1,1) -> 5918.011709 | N45: =[1]!hecalc(14,0,1,_p2*100000,2,_T*1,1) -> 5894.456665 | O45: =[1]!hecalc(14,0,1,_p2*100000,2,_T*1,1) -> 5871.967345 | P45: =[1]!hecalc(14,0,1,_p2*100000,2,_T*1,1) -> 5850.485244 | Q45: =[1]!hecalc(14,0,1,_p2*100000,2,_T*1,1) -> 5829.954986 | R45: =[1]!hecalc(14,0,1,_p2*100000,2,_T*1,1) -> 5810.324286 | S45: =[1]!hecalc(14,0,1,_p2*100000,2,_T*1,1) -> 5791.543867 | T45: =[1]!hecalc(14,0,1,_p2*100000,2,_T*1,1) -> 5773.56736 | U45: =[1]!hecalc(14,0,1,_p2*100000,2,_T*1,1) -> 5756.351169 | V45: =[1]!hecalc(14,0,1,_p2*100000,2,_T*1,1) -> 5739.854343 | W45: =[1]!hecalc(14,0,1,_p2*100000,2,_T*1,1) -> 5724.038431 | X45: =[1]!hecalc(14,0,1,_p2*100000,2,_T*1,1) -> 5708.867341 | Y45: =[1]!hecalc(14,0,1,_p2*100000,2,_T*1,1) -> 5694.307198 | Z45: =[1]!hecalc(14,0,1,_p2*100000,2,_T*1,1) -> 5680.326213
A46: Vapor viscosity | B46: Pa*s | C46: =[1]!hecalc(25,0,1,_p2*100000,2,_T*1,1) -> 4.17267635e-06 | D46: =[1]!hecalc(25,0,1,_p2*100000,2,_T*1,1) -> 4.20331203e-06 | E46: =[1]!hecalc(25,0,1,_p2*100000,2,_T*1,1) -> 4.234353113e-06 | F46: =[1]!hecalc(25,0,1,_p2*100000,2,_T*1,1) -> 4.265745778e-06 | G46: =[1]!hecalc(25,0,1,_p2*100000,2,_T*1,1) -> 4.297442771e-06 | H46: =[1]!hecalc(25,0,1,_p2*100000,2,_T*1,1) -> 4.32940249e-06 | I46: =[1]!hecalc(25,0,1,_p2*100000,2,_T*1,1) -> 4.361588213e-06 | J46: =[1]!hecalc(25,0,1,_p2*100000,2,_T*1,1) -> 4.393967447e-06 | K46: =[1]!hecalc(25,0,1,_p2*100000,2,_T*1,1) -> 4.42651138e-06 | L46: =[1]!hecalc(25,0,1,_p2*100000,2,_T*1,1) -> 4.459194402e-06 | M46: =[1]!hecalc(25,0,1,_p2*100000,2,_T*1,1) -> 4.491993715e-06 | N46: =[1]!hecalc(25,0,1,_p2*100000,2,_T*1,1) -> 4.524888982e-06 | O46: =[1]!hecalc(25,0,1,_p2*100000,2,_T*1,1) -> 4.55786203e-06 | P46: =[1]!hecalc(25,0,1,_p2*100000,2,_T*1,1) -> 4.590896602e-06 | Q46: =[1]!hecalc(25,0,1,_p2*100000,2,_T*1,1) -> 4.623978128e-06 | R46: =[1]!hecalc(25,0,1,_p2*100000,2,_T*1,1) -> 4.657093539e-06 | S46: =[1]!hecalc(25,0,1,_p2*100000,2,_T*1,1) -> 4.690231096e-06 | T46: =[1]!hecalc(25,0,1,_p2*100000,2,_T*1,1) -> 4.723380246e-06 | U46: =[1]!hecalc(25,0,1,_p2*100000,2,_T*1,1) -> 4.756531495e-06 | V46: =[1]!hecalc(25,0,1,_p2*100000,2,_T*1,1) -> 4.789676293e-06 | W46: =[1]!hecalc(25,0,1,_p2*100000,2,_T*1,1) -> 4.82280694e-06 | X46: =[1]!hecalc(25,0,1,_p2*100000,2,_T*1,1) -> 4.855916493e-06 | Y46: =[1]!hecalc(25,0,1,_p2*100000,2,_T*1,1) -> 4.888998696e-06 | Z46: =[1]!hecalc(25,0,1,_p2*100000,2,_T*1,1) -> 4.922047905e-06
A47: Vapor thermal cond. | B47: W/(m*K) | C47: =[1]!hecalc(26,0,1,_p2*100000,2,_T*1,1) -> 0.03175398833 | D47: =[1]!hecalc(26,0,1,_p2*100000,2,_T*1,1) -> 0.03196547262 | E47: =[1]!hecalc(26,0,1,_p2*100000,2,_T*1,1) -> 0.03217925455 | F47: =[1]!hecalc(26,0,1,_p2*100000,2,_T*1,1) -> 0.03239505143 | G47: =[1]!hecalc(26,0,1,_p2*100000,2,_T*1,1) -> 0.0326126182 | H47: =[1]!hecalc(26,0,1,_p2*100000,2,_T*1,1) -> 0.03283174161 | I47: =[1]!hecalc(26,0,1,_p2*100000,2,_T*1,1) -> 0.0330522354 | J47: =[1]!hecalc(26,0,1,_p2*100000,2,_T*1,1) -> 0.03327393631 | K47: =[1]!hecalc(26,0,1,_p2*100000,2,_T*1,1) -> 0.03349670073 | L47: =[1]!hecalc(26,0,1,_p2*100000,2,_T*1,1) -> 0.03372040194 | M47: =[1]!hecalc(26,0,1,_p2*100000,2,_T*1,1) -> 0.03394492773 | N47: =[1]!hecalc(26,0,1,_p2*100000,2,_T*1,1) -> 0.03417017844 | O47: =[1]!hecalc(26,0,1,_p2*100000,2,_T*1,1) -> 0.03439606532 | P47: =[1]!hecalc(26,0,1,_p2*100000,2,_T*1,1) -> 0.03462250908 | Q47: =[1]!hecalc(26,0,1,_p2*100000,2,_T*1,1) -> 0.03484943867 | R47: =[1]!hecalc(26,0,1,_p2*100000,2,_T*1,1) -> 0.03507679031 | S47: =[1]!hecalc(26,0,1,_p2*100000,2,_T*1,1) -> 0.03530450657 | T47: =[1]!hecalc(26,0,1,_p2*100000,2,_T*1,1) -> 0.03553253559 | U47: =[1]!hecalc(26,0,1,_p2*100000,2,_T*1,1) -> 0.03576083047 | V47: =[1]!hecalc(26,0,1,_p2*100000,2,_T*1,1) -> 0.0359893487 | W47: =[1]!hecalc(26,0,1,_p2*100000,2,_T*1,1) -> 0.03621805163 | X47: =[1]!hecalc(26,0,1,_p2*100000,2,_T*1,1) -> 0.03644690409 | Y47: =[1]!hecalc(26,0,1,_p2*100000,2,_T*1,1) -> 0.036675874 | Z47: =[1]!hecalc(26,0,1,_p2*100000,2,_T*1,1) -> 0.03690493204
A48: Vapor molecular weight | C48: 4.0026 | D48: 4.0026 | E48: 4.0026 | F48: 4.0026 | G48: 4.0026 | H48: 4.0026 | I48: 4.0026 | J48: 4.0026 | K48: 4.0026 | L48: 4.0026 | M48: 4.0026 | N48: 4.0026 | O48: 4.0026 | P48: 4.0026 | Q48: 4.0026 | R48: 4.0026 | S48: 4.0026 | T48: 4.0026 | U48: 4.0026 | V48: 4.0026 | W48: 4.0026 | X48: 4.0026 | Y48: 4.0026 | Z48: 4.0026

Sheet AUX (hidden)
A1: Name | B1: T [K] | C1: p [bar] | D1: Flow [kg/s] | G1: Stream name | H1: ='Helium Gas'!J2 -> T4Lb>>8MPa | I1: ='Helium Gas'!K2 -> 8HPc>>9HPa | J1: ='Helium Gas'!L2 -> 9LPa>>8LPa | K1: ='Helium Gas'!M2 -> #Error# | L1: ='Helium Gas'!N2 -> #Error# | M1: ='Helium Gas'!O2 -> #Error# | N1: ='Helium Gas'!P2 -> #Error# | O1: ='Helium Gas'!Q2 -> #Error# | P1: ='Helium Gas'!R2 -> #Error# | Q1: ='Helium Gas'!S2 -> #Error#
A2: 1 | B2: 4.5028728 | C2: 1.303 | D2: 0.4635 | G2: Total mass flow rate | H2: ='Helium Gas'!J3 -> 0.12 | I2: ='Helium Gas'!K3 -> 0.4645 | J2: ='Helium Gas'!L3 -> 0.4554790653 | K2: ='Helium Gas'!M3 ->  | L2: ='Helium Gas'!N3 ->  | M2: ='Helium Gas'!O3 ->  | N2: ='Helium Gas'!P3 ->  | O2: ='Helium Gas'!Q3 ->  | P2: ='Helium Gas'!R3 ->  | Q2: ='Helium Gas'!S3 -> 
A3: 2 | B3: 300 | C3: 1.05 | D3: 0.009854883336 | G3: Mass flow multiplier | H3: 1 | I3: 1 | J3: 1 | K3: 1 | L3: 1 | M3: 1 | N3: 1 | O3: 1 | P3: 1 | Q3: 1
A4: 0HPa | B4: 300 | C4: 19.74 | D4: 0.9073672301 | G4: Inlet temperature | H4: ='Helium Gas'!J4 -> 18.67669293 | I4: ='Helium Gas'!K4 -> 27.0435774 | J4: ='Helium Gas'!L4 -> 18.67669293 | K4: ='Helium Gas'!M4 ->  | L4: ='Helium Gas'!N4 ->  | M4: ='Helium Gas'!O4 ->  | N4: ='Helium Gas'!P4 ->  | O4: ='Helium Gas'!Q4 ->  | P4: ='Helium Gas'!R4 ->  | Q4: ='Helium Gas'!S4 -> 
A5: 0HPb | B5: 299.995644 | C5: 19.81 | D5: 0.9073672301 | G5: Outlet temperature | H5: ='Helium Gas'!J5 -> 26.060519 | I5: ='Helium Gas'!K5 -> 18.8634489 | J5: ='Helium Gas'!L5 -> 26.06051716 | K5: ='Helium Gas'!M5 ->  | L5: ='Helium Gas'!N5 ->  | M5: ='Helium Gas'!O5 ->  | N5: ='Helium Gas'!P5 ->  | O5: ='Helium Gas'!Q5 ->  | P5: ='Helium Gas'!R5 ->  | Q5: ='Helium Gas'!S5 -> 
A6: 0HPc | B6: 299.995644 | C6: 19.81 | D6: 0.9749496688 | G6: Inlet quality(vapor mass fraction)
A7: 0HPd | B7: 300 | C7: 20.31 | D7: 0.9749496688 | G7: Outlet quality (vapor mass fraction)
A8: 0HPe | B8: 598.1760799 | C8: 20.31 | D8: 0.9749496688 | G8: Inlet pressure | H8: ='Helium Gas'!J6 -> 5.256480657 | I8: ='Helium Gas'!K6 -> 19.415 | J8: ='Helium Gas'!L6 -> 1.267518171 | K8: ='Helium Gas'!M6 ->  | L8: ='Helium Gas'!N6 ->  | M8: ='Helium Gas'!O6 ->  | N8: ='Helium Gas'!P6 ->  | O8: ='Helium Gas'!Q6 ->  | P8: ='Helium Gas'!R6 ->  | Q8: ='Helium Gas'!S6 -> 
A9: 0LPa | B9: 296.9720905 | C9: 1.102212249 | D9: 0.4554790653 | G9: Outlet pressure | H9: ='Helium Gas'!J7 -> 5.241248535 | I9: ='Helium Gas'!K7 -> 19.395 | J9: ='Helium Gas'!L7 -> 1.252286071 | K9: ='Helium Gas'!M7 ->  | L9: ='Helium Gas'!N7 ->  | M9: ='Helium Gas'!O7 ->  | N9: ='Helium Gas'!P7 ->  | O9: ='Helium Gas'!Q7 ->  | P9: ='Helium Gas'!R7 ->  | Q9: ='Helium Gas'!S7 -> 
A10: 0LPd | B10: 296.9753409 | C10: 1.05 | D10: 0.4554790653 | G10: Inlet specific enthalpy
A11: 0LPh | B11: 297.2610814 | C11: 1.05 | D11: 0.5329424387 | G11: Outlet specific enthalpy
A12: 0MPa | B12: 640.8847836 | C12: 5 | D12: 0.5329424387 | G12: Allowed pressure drop | H12: ='Helium Gas'!J6-'Helium Gas'!J7 -> 0.01523212192 | I12: ='Helium Gas'!K6-'Helium Gas'!K7 -> 0.02 | J12: ='Helium Gas'!L6-'Helium Gas'!L7 -> 0.0152321 | K12: ='Helium Gas'!M6-'Helium Gas'!M7 ->  | L12: ='Helium Gas'!N6-'Helium Gas'!N7 ->  | M12: ='Helium Gas'!O6-'Helium Gas'!O7 ->  | N12: ='Helium Gas'!P6-'Helium Gas'!P7 ->  | O12: ='Helium Gas'!Q6-'Helium Gas'!Q7 ->  | P12: ='Helium Gas'!R6-'Helium Gas'!R7 ->  | Q12: ='Helium Gas'!S6-'Helium Gas'!S7 -> 
A13: 0MPb | B13: 300 | C13: 5 | D13: 0.5329424387 | G13: Estimated pressure loss
A14: 0MPc | B14: 296.9720905 | C14: 5.07 | D14: 0.4420072301 | G14: Heat load
A15: 0MPd | B15: 296.9764486 | C15: 5 | D15: 0.4420072301 | G15: Fraction of maximum heat load
A16: 0MPe | B16: 298.6292298 | C16: 5 | D16: 0.9749496688 | G16: Number of sides | H16: =SUM(ISNUMBER(H2:Q2)*1) -> 3
A17: 11LPa | B17: 8.090077697 | C17: 1.270764361 | D17: 0.4554790653
A18: 12HPa | B18: 5.094708356 | C18: 7.99 | D18: 0.4643
A19: 12HPb | B19: 5.108384687 | C19: 7.84 | D19: 0.4643 | G19: Along parting sheets | H19: =MATCH(_EDR_Cond,_ct_EDR_Cond,0) -> 2
A20: 12LPa | B20: 4.6 | C20: 1.281501758 | D20: 0.4554790653 | G20: Along fins and parting sheets
A21: 12MPa | B21: 4.810402797 | C21: 3 | D21: 0.4643 | G21: None
A22: 12MPb | B22: 4.810402797 | C22: 3 | D22: 0.4635
A23: 13LPa | B23: 4.500351043 | C23: 1.303 | D23: 0.4635 | G23: Vertical, end A at top | H23: =MATCH(_EDR_Orient,_cT_EDR_Orient,0) -> 4
A24: 13LPb | B24: 4.5028728 | C24: 1.303 | D24: 0.4536451167 | G24: Vertical, end A at bottom
A25: 13LPc | B25: 4.502867244 | C25: 1.303 | D25: 0.4554790653 | G25: Horizontal, vertical parting sheets
A26: 13LPd | B26: 4.48562764 | C26: 1.283 | D26: 0.4554790653 | G26: Horizontal, horizontal parting sheets
A27: 13MPa | B27: 4.585027635 | C27: 2.99 | D27: 0.4635
A28: 1HPa | B28: 153.5922904 | C28: 19.69 | D28: 0.9073672301
A29: 1HPb | B29: 153.5922904 | C29: 19.69 | D29: 0.7523672301
A30: 1LPa | B30: 148.8944167 | C30: 1.147658908 | D30: 0.4554790653
A31: 1MPa | B31: 148.8943803 | C31: 5.12 | D31: 0.4420072301
A32: 2HPa | B32: 132.505251 | C32: 19.67 | D32: 0.7523672301
A33: 2LPa | B33: 131.1851257 | C33: 1.15714777 | D33: 0.4554790653
A34: 2MPa | B34: 131.1851645 | C34: 5.14 | D34: 0.4420072301
A35: 3HPa | B35: 63.63512583 | C35: 19.65 | D35: 0.7523672301
A36: 3LPa | B36: 61.20081885 | C36: 1.20658974 | D36: 0.4554790653
A37: 3MPa | B37: 61.20081894 | C37: 5.16 | D37: 0.4420072301
A38: 4HPa | B38: 50.20303871 | C38: 19.63 | D38: 0.7523672301
A39: 4HPb | B39: 50.20780964 | C39: 19.54 | D39: 0.7523672301
A40: 4LPa | B40: 49.74 | C40: 1.22032362 | D40: 0.4554790653
A41: 4MPa | B41: 49.74 | C41: 5.18 | D41: 0.2874072301
A42: 4MPb | B42: 49.74 | C42: 5.18 | D42: 0.4420072301
A43: 5HPa | B43: 50.08693953 | C43: 19.52 | D43: 0.7523672301
A44: 5HPb | B44: 50.08693953 | C44: 19.52 | D44: 0.7220003294
A45: 5LPa | B45: 49.61283654 | C45: 1.221572155 | D45: 0.4554790653
A46: 5MPa | B46: 49.61283519 | C46: 5.2 | D46: 0.2874072301
A47: 6HPa | B47: 35.9 | C47: 19.5 | D47: 0.7220003294
A48: 6HPb | B48: 35.9 | C48: 19.5 | D48: 0.58474
A49: 6LPa | B49: 35.35342511 | C49: 1.249789037 | D49: 0.4554790653
A50: 6MPa | B50: 35.3534248 | C50: 5.22 | D50: 0.2874072301
A51: 7HPa | B51: 34.7693784 | C51: 19.48 | D51: 0.58474
A52: 7LPa | B52: 34.42079767 | C52: 1.251037571 | D52: 0.4554790653
A53: 7MPa | B53: 34.42079767 | C53: 5.24 | D53: 0.12
A54: 7MPb | B54: 34.42079767 | C54: 5.24 | D54: 0.2874072301
A55: 8HPa | B55: 27.04309852 | C55: 19.46 | D55: 0.58474
A56: 8HPb | B56: 27.0435774 | C56: 19.415 | D56: 0.58474
A57: 8HPc | B57: 27.0435774 | C57: 19.415 | D57: 0.4645
A58: 8LPa | B58: 26.06051716 | C58: 1.252286071 | D58: 0.4554790653
A59: 8MPa | B59: 26.060519 | C59: 5.241248535 | D59: 0.12
A60: 9HPa | B60: 18.8634489 | C60: 19.395 | D60: 0.4645
A61: 9LPa | B61: 18.67669293 | C61: 1.267518171 | D61: 0.4554790653
A62: From Buffer | B62: 300 | C62: 1.05 | D62: 0
A63: From TS | B63: 50.1 | C63: 19 | D63: 0.1372603294
A64: From Turbines | B64: 287.7149891 | C64: 3 | D64: 0.03836
A65: From Turbines 2 | B65: 296.9753409 | C65: 1.05 | D65: 0.03836
A66: HP-LPa | B66: 299.995644 | C66: 19.81 | D66: 0.02924849006
A67: HP-LPb | B67: 301.1627568 | C67: 1.05 | D67: 0.02924849006
A68: LevelCompensation | B68: 4.501489978 | C68: 1.303 | D68: 0.001833948625
A69: LHe | B69: 4.5028728 | C69: 1.303 | D69: 0.009854883336
A70: T1_Loss | B70: 132.505251 | C70: 12 | D70: 0.0002
A71: T1Ha | B71: 153.5922904 | C71: 19.69 | D71: 0.155
A72: T1Hb | B72: 153.601466 | C72: 19.54 | D72: 0.155
A73: T1La | B73: 132.505251 | C73: 12 | D73: 0.155
A74: T1Lb | B74: 132.505251 | C74: 12 | D74: 0.1548
A75: T2_Loss | B75: 49.74 | C75: 5.18 | D75: 0.0002
A76: T2Ha | B76: 63.63512583 | C76: 11.98 | D76: 0.1548
A77: T2Hb | B77: 63.64081063 | C77: 11.83 | D77: 0.1548
A78: T2La | B78: 49.74 | C78: 5.18 | D78: 0.1548
A79: T2Lb | B79: 49.74 | C79: 5.18 | D79: 0.1546
A80: T3_Loss | B80: 34.42079767 | C80: 5.24 | D80: 0.00022
A81: T3Ha | B81: 50.08693953 | C81: 19.52 | D81: 0.03036690067
A82: T3Hb | B82: 50.1 | C82: 19 | D82: 0.03036690067
A83: T3Hc | B83: 50.1 | C83: 19 | D83: 0.1676272301
A84: T3La | B84: 34.42079767 | C84: 5.24 | D84: 0.1676272301
A85: T3Lb | B85: 34.42079767 | C85: 5.24 | D85: 0.1674072301
A86: T4_Loss | B86: 18.67669293 | C86: 5.256480657 | D86: 0.00024
A87: T4Ha | B87: 27.0435774 | C87: 19.415 | D87: 0.12024
A88: T4Hb | B88: 27.04014687 | C88: 19.265 | D88: 0.12024
A89: T4La | B89: 18.67669293 | C89: 5.256480657 | D89: 0.12024
A90: T4Lb | B90: 18.67669293 | C90: 5.256480657 | D90: 0.12
A91: T5_Loss | B91: 8.189708955 | C91: 8 | D91: 0.0002
A92: T5Ha | B92: 10.43297661 | C92: 19.375 | D92: 0.4645
A93: T5Hb | B93: 10.42928022 | C93: 19.225 | D93: 0.4645
A94: T5La | B94: 8.189708955 | C94: 8 | D94: 0.4645
A95: T5Lb | B95: 8.189708955 | C95: 8 | D95: 0.4643
A96: T6_Loss | B96: 4.810402797 | C96: 3 | D96: 0.0008
A97: To Buffer | B97: 299.995644 | C97: 19.81 | D97: 0.001833948625
A98: To TS | B98: 35.9 | C98: 19.5 | D98: 0.1372603294
A99: Turbine Bearings | B99: 299.995644 | C99: 19.81 | D99: 0.0365
